bitfinex/quotes_BTCUSD_20241103
["timestamp","ask_amount","ask_price","bid_price","bid_amount"]
[1730604016137,3.06012478,68333.0,68332.0,0.00164]
[1730604016433,3.09575992,68333.0,68332.0,0.00164]
[1730604016848,0.248344,68332.0,68331.0,0.0106511]
[1730604017058,0.55457618,68332.0,68331.0,0.0106511]
[1730604017308,1.21256192,68332.0,68331.0,0.0106511]
[1730604017994,1.21255947,68332.0,68331.0,0.0106511]
[1730604018413,1.22655947,68332.0,68331.0,0.0106511]
[1730604018659,1.2265536,68332.0,68331.0,0.0106511]
[1730604018872,1.2265536,68332.0,68323.0,0.001654]
[1730604018873,0.86898488,68324.0,68323.0,0.001654]
[1730604019088,1.69056874,68324.0,68323.0,0.001654]
[1730604020325,1.70456874,68324.0,68323.0,0.001654]
[1730604020992,1.21656874,68324.0,68323.0,0.001654]
[1730604021437,1.20285572,68324.0,68323.0,0.001654]
[1730604021676,1.3623705,68324.0,68323.0,0.001654]
[1730604022131,1.2808705,68324.0,68323.0,0.001654]
[1730604023432,1.2828705,68324.0,68323.0,0.001654]
[1730604023689,1.32866117,68324.0,68323.0,0.001654]
[1730604024157,1.2828705,68324.0,68323.0,0.001654]
[1730604024834,1.24726766,68324.0,68323.0,0.001654]
[1730604025057,1.36435449,68324.0,68323.0,0.001654]
[1730604025278,1.86435449,68324.0,68323.0,0.001654]
[1730604026386,1.86235449,68324.0,68323.0,0.001654]
[1730604028013,1.82876766,68324.0,68323.0,0.001654]
[1730604028210,1.86233829,68324.0,68323.0,0.001654]
[1730604028412,1.78083829,68324.0,68323.0,0.001654]
[1730604029710,1.74526766,68324.0,68323.0,0.001654]
[1730604029910,1.78083405,68324.0,68323.0,0.001654]
[1730604030520,1.66021017,68324.0,68323.0,0.001654]
[1730604031758,1.66586694,68324.0,68323.0,0.001654]
[1730604031985,1.78649082,68324.0,68323.0,0.001654]
[1730604032229,0.99416508,68324.0,68323.0,0.001654]
[1730604032472,0.8735412,68324.0,68323.0,0.001654]
[1730604038908,0.87358979,68324.0,68323.0,0.001654]
[1730604039975,0.58143175,68324.0,68323.0,0.158017]
[1730604040175,0.58143175,68324.0,68323.0,0.241117]
[1730604040749,0.55951365,68324.0,68323.0,0.241117]
[1730604040959,0.54016,68324.0,68323.0,0.286717]
[1730604041249,0.5312551,68324.0,68323.0,0.286717]
[1730604041676,0.5172551,68324.0,68323.0,0.286717]
[1730604042065,0.5452551,68324.0,68323.0,0.286717]
[1730604042394,0.5312551,68324.0,68323.0,0.286717]
[1730604042596,0.5172551,68324.0,68323.0,0.286717]
[1730604042859,0.5182551,68324.0,68323.0,0.288717]
[1730604043503,0.5172551,68324.0,68323.0,0.286717]
[1730604043710,0.5182551,68324.0,68323.0,0.289717]
[1730604044049,0.5192551,68324.0,68323.0,0.302717]
[1730604044258,0.5182551,68324.0,68323.0,0.54551404]
[1730604044607,0.5192551,68324.0,68323.0,0.54851404]
[1730604045444,0.5192551,68324.0,68323.0,0.55051404]
[1730604045703,0.5192551,68324.0,68323.0,0.54851404]
[1730604045897,0.4411551,68324.0,68323.0,0.54851404]
[1730604046774,0.4401551,68324.0,68323.0,0.54551404]
[1730604046978,0.4391551,68324.0,68323.0,0.54251404]
[1730604047209,0.4401551,68324.0,68323.0,0.54751404]
[1730604048036,0.4391551,68324.0,68323.0,0.55851404]
[1730604048243,0.4391551,68324.0,68323.0,0.55651404]
[1730604048244,0.4401551,68324.0,68323.0,0.55651404]
[1730604048469,0.4411551,68324.0,68323.0,0.56151404]
[1730604048599,0.4401551,68324.0,68323.0,0.54751404]
[1730604048808,0.4411551,68324.0,68323.0,0.56151404]
[1730604049018,0.4411551,68324.0,68323.0,0.56351404]
[1730604049441,0.4411551,68324.0,68323.0,0.57116793]
[1730604049684,0.4411551,68324.0,68323.0,0.56351404]
[1730604049860,0.4401551,68324.0,68323.0,0.55851404]
[1730604050336,0.4411551,68324.0,68323.0,0.56351404]
[1730604050601,0.4411551,68324.0,68323.0,0.55651404]
[1730604051044,0.4421551,68324.0,68323.0,0.65134404]
[1730604051244,0.4421551,68324.0,68323.0,0.56351404]
[1730604052216,0.4421551,68324.0,68323.0,0.6285568]
[1730604052490,0.4421551,68324.0,68323.0,0.56351404]
[1730604053045,0.4421551,68324.0,68323.0,0.56151404]
[1730604053427,0.43706,68324.0,68323.0,0.56151404]
[1730604053639,0.43706,68324.0,68323.0,0.60485403]
[1730604053640,0.44227292,68324.0,68323.0,0.60485403]
[1730604054245,0.43706,68324.0,68323.0,0.60685403]
[1730604054560,0.44227292,68324.0,68323.0,0.56351404]
[1730604054755,0.44227292,68324.0,68323.0,0.60485403]
[1730604055519,0.44227292,68324.0,68323.0,0.56151404]
[1730604055944,0.000819,68331.0,68330.0,0.242648]
[1730604056172,0.000819,68331.0,68330.0,0.65726892]
[1730604056728,0.000819,68331.0,68330.0,0.65926892]
[1730604056935,0.001819,68331.0,68330.0,0.67190176]
[1730604057137,0.001819,68331.0,68330.0,0.79252564]
[1730604057342,0.001819,68331.0,68330.0,0.7798928]
[1730604057343,0.000819,68331.0,68330.0,0.7798928]
[1730604057558,0.22027818,68339.0,68338.0,0.390831]
[1730604057766,0.22027818,68339.0,68338.0,0.53662804]
[1730604057975,0.00082,68349.0,68338.0,0.53662804]
[1730604057976,0.00082,68349.0,68345.0,0.161316]
[1730604058201,0.00745837,68346.0,68345.0,0.41503904]
[1730604058405,0.00745837,68346.0,68345.0,0.48841304]
[1730604058406,0.00082,68346.0,68345.0,0.48841304]
[1730604058605,0.00082,68346.0,68345.0,0.60903692]
[1730604060285,0.00082,68346.0,68345.0,0.61265084]
[1730604060492,0.00082,68346.0,68345.0,0.61765084]
[1730604060700,0.00082,68346.0,68345.0,0.61265084]
[1730604061047,0.00082,68346.0,68345.0,0.83523745]
[1730604061162,0.00082,68346.0,68345.0,0.67547809]
[1730604061508,0.00082,68346.0,68345.0,0.68247809]
[1730604061890,0.00082,68346.0,68345.0,0.71173809]
[1730604062049,0.00082,68346.0,68345.0,0.69973809]
[1730604062249,0.00082,68346.0,68345.0,0.71173809]
[1730604062466,0.00082,68349.0,68348.0,0.05126]
[1730604062726,0.00082,68349.0,68348.0,0.42155704]
[1730604064424,0.00082,68349.0,68348.0,0.42655704]
[1730604064834,0.0476,68377.0,68360.0,0.02]
[1730604065039,0.0476,68377.0,68360.0,0.34389704]
[1730604065287,0.0476,68377.0,68360.0,0.46452092]
[1730604065497,0.0476,68377.0,68367.0,0.01]
[1730604065946,0.0476,68377.0,68376.0,0.01]
[1730604066152,0.22058661,68378.0,68368.0,0.005]
[1730604066153,0.22058661,68378.0,68377.0,0.156248]
[1730604066376,0.07682,68381.0,68380.0,0.151241]
[1730604066604,0.00082,68381.0,68380.0,0.005]
[1730604068063,0.2034008,68381.0,68380.0,0.005]
[1730604068275,0.00082,68381.0,68380.0,0.005]
[1730604068474,0.00082,68381.0,68380.0,0.151241]
[1730604068852,0.00082,68381.0,68380.0,0.005]
[1730604069180,0.147059,68381.0,68380.0,0.005]
[1730604069334,0.00082,68381.0,68380.0,0.005]
[1730604069540,0.01482,68381.0,68380.0,0.012]
[1730604069746,0.161059,68381.0,68380.0,0.011]
[1730604069929,0.147059,68381.0,68380.0,0.011]
[1730604070171,0.29856871,68381.0,68380.0,0.002]
[1730604070544,0.29857335,68381.0,68380.0,0.002]
[1730604070679,0.33963824,68381.0,68380.0,0.002]
[1730604070873,0.29857335,68381.0,68380.0,0.002]
[1730604071960,0.29857335,68381.0,68345.0,0.22058661]
[1730604071961,0.0461,68361.0,68345.0,0.22058661]
[1730604072149,0.1239,68354.0,68335.0,0.22058661]
[1730604072367,0.04630527,68353.0,68335.0,0.22058661]
[1730604072589,0.146335,68336.0,68335.0,0.22058661]
[1730604072760,0.01361435,68336.0,68326.0,0.36694261]
[1730604072965,0.146341,68334.0,68326.0,0.36694161]
[1730604073170,0.01361435,68335.0,68321.0,0.299387]
[1730604073171,0.146342,68333.0,68321.0,0.294387]
[1730604073384,0.292672,68336.0,68321.0,0.294387]
[1730604073385,0.146337,68336.0,68322.0,0.29773]
[1730604073596,0.0778,68337.0,68326.0,0.005]
[1730604073819,0.014,68336.0,68332.0,0.00319497]
[1730604074032,0.14634,68334.0,68332.0,0.00319497]
[1730604074229,0.15996993,68333.0,68332.0,0.00319497]
[1730604074445,0.21715682,68333.0,68332.0,0.00319497]
[1730604074659,0.23078363,68333.0,68332.0,0.00319497]
[1730604074859,0.23078363,68333.0,68332.0,0.00419497]
[1730604075254,0.23078363,68333.0,68332.0,0.00319497]
[1730604075506,0.23078363,68333.0,68323.0,0.001654]
[1730604075507,0.146361,68324.0,68323.0,0.001654]
[1730604076056,0.15998784,68324.0,68323.0,0.001654]
[1730604077551,0.31767907,68324.0,68323.0,0.001654]
[1730604077988,0.48530295,68324.0,68323.0,0.001654]
[1730604078192,0.60402392,68324.0,68323.0,0.001654]
[1730604078408,0.85222647,68324.0,68323.0,0.002654]
[1730604078557,0.85722647,68324.0,68323.0,0.002654]
[1730604078780,1.30475447,68324.0,68323.0,0.001654]
[1730604078983,1.36844426,68324.0,68323.0,0.001654]
[1730604079191,1.36066997,68324.0,68323.0,0.001654]
[1730604079795,1.36166997,68324.0,68323.0,0.001654]
[1730604079997,1.37566997,68324.0,68323.0,0.001654]
[1730604080440,1.35625054,68324.0,68323.0,0.001654]
[1730604080679,1.35825054,68324.0,68323.0,0.001654]
[1730604081228,1.35125054,68324.0,68323.0,0.001654]
[1730604083529,1.3403634,68324.0,68323.0,0.001654]
[1730604083893,1.35121498,68324.0,68323.0,0.001654]
[1730604084310,1.35121519,68324.0,68323.0,0.001654]
[1730604084519,1.3403634,68324.0,68323.0,0.001654]
[1730604084807,1.35116029,68324.0,68323.0,0.001654]
[1730604084972,1.34031326,68324.0,68323.0,0.001654]
[1730604085972,1.32675447,68324.0,68323.0,0.001654]
[1730604088024,1.33175447,68324.0,68323.0,0.001654]
[1730604088753,1.00005192,68324.0,68323.0,0.001654]
[1730604088960,0.54027,68324.0,68323.0,0.001654]
[1730604089549,0.54027,68324.0,68323.0,0.148017]
[1730604089933,0.54027,68324.0,68323.0,0.001654]
[1730604090596,0.54557192,68324.0,68323.0,0.001654]
[1730604090716,0.53157192,68324.0,68323.0,0.001654]
[1730604090918,0.51757192,68324.0,68323.0,0.001654]
[1730604091123,0.53157192,68324.0,68323.0,0.001654]
[1730604091612,0.61463581,68324.0,68323.0,0.001654]
[1730604091871,0.77499681,68324.0,68323.0,0.001654]
[1730604092413,0.62863581,68324.0,68323.0,0.001654]
[1730604092620,0.77499681,68324.0,68323.0,0.001654]
[1730604093037,0.88162069,68324.0,68323.0,0.001654]
[1730604093479,0.89562069,68324.0,68323.0,0.001654]
[1730604094090,1.04141773,68324.0,68323.0,0.001654]
[1730604094292,1.02741773,68324.0,68323.0,0.001654]
[1730604094518,1.04141773,68324.0,68323.0,0.001654]
[1730604094729,1.05541773,68324.0,68323.0,0.001654]
[1730604095056,0.83772996,68324.0,68323.0,0.001654]
[1730604095996,0.82372996,68324.0,68323.0,0.001654]
[1730604096396,0.8254971,68324.0,68323.0,0.001654]
[1730604096788,0.8394971,68324.0,68323.0,0.001654]
[1730604097493,0.54733906,68324.0,68323.0,0.001654]
[1730604098856,0.79234057,68324.0,68323.0,0.001654]
[1730604100481,0.80596535,68324.0,68323.0,0.001654]
[1730604100716,0.81688038,68324.0,68323.0,0.001654]
[1730604101372,0.83438136,68324.0,68323.0,0.001654]
[1730604101994,0.73574085,68324.0,68323.0,0.001654]
[1730604102217,1.00803789,68324.0,68323.0,0.001654]
[1730604102458,0.97966989,68324.0,68323.0,0.001654]
[1730604102694,1.00812401,68324.0,68323.0,0.001654]
[1730604105982,1.00817734,68324.0,68323.0,0.001654]
[1730604106302,0.99064788,68324.0,68323.0,0.001654]
[1730604106707,1.06774796,68324.0,68323.0,0.001654]
[1730604108071,1.06774914,68324.0,68323.0,0.001654]
[1730604111098,1.07274914,68324.0,68323.0,0.001654]
[1730604111327,1.17774914,68324.0,68323.0,0.001654]
[1730604111549,1.17597816,68324.0,68323.0,0.001654]
[1730604111849,1.17797816,68324.0,68323.0,0.001654]
[1730604112062,1.17597816,68324.0,68323.0,0.001654]
[1730604113532,1.17598859,68324.0,68323.0,0.001654]
[1730604113978,1.16598859,68324.0,68323.0,0.001654]
[1730604114174,1.17598859,68324.0,68323.0,0.001654]
[1730604115172,1.17098859,68324.0,68323.0,0.001654]
[1730604115380,0.86238851,68324.0,68323.0,0.001654]
[1730604116723,0.98889799,68324.0,68323.0,0.001654]
[1730604117888,0.98889934,68324.0,68323.0,0.001654]
[1730604118936,1.10089934,68324.0,68323.0,0.001654]
[1730604119155,1.24672508,68324.0,68323.0,0.001654]
[1730604119788,1.2467311,68324.0,68323.0,0.001654]
[1730604120206,1.2447311,68324.0,68323.0,0.001654]
[1730604120415,1.09890536,68324.0,68323.0,0.001654]
[1730604120643,1.31949341,68324.0,68323.0,0.001654]
[1730604120861,1.1009068,68324.0,68323.0,0.001654]
[1730604122151,1.07422612,68324.0,68323.0,0.001654]
[1730604122385,1.09890997,68324.0,68323.0,0.001654]
[1730604122603,1.24473571,68324.0,68323.0,0.001654]
[1730604123479,0.91050997,68324.0,68323.0,0.001654]
[1730604123707,0.86240997,68324.0,68323.0,0.001654]
[1730604124583,0.71661293,68324.0,68323.0,0.001654]
[1730604125596,0.70564195,68324.0,68323.0,0.001654]
[1730604125745,0.71661225,68324.0,68323.0,0.001654]
[1730604126578,0.75022672,68324.0,68323.0,0.001654]
[1730604127953,0.89602376,68324.0,68323.0,0.001654]
[1730604128164,0.97432376,68324.0,68323.0,0.001654]
[1730604128386,0.89602376,68324.0,68323.0,0.001654]
[1730604128995,0.87134059,68324.0,68323.0,0.001654]
[1730604129209,0.89602647,68324.0,68323.0,0.001654]
[1730604130447,0.89802647,68324.0,68323.0,0.001654]
[1730604130681,1.00302647,68324.0,68323.0,0.001654]
[1730604131168,1.00102647,68324.0,68323.0,0.001654]
[1730604132242,0.97634059,68324.0,68323.0,0.001654]
[1730604132465,0.9900594,68324.0,68323.0,0.001654]
[1730604132674,1.00103445,68324.0,68323.0,0.001654]
[1730604135807,0.97634059,68324.0,68323.0,0.001654]
[1730604136018,1.00103387,68324.0,68323.0,0.001654]
[1730604136183,0.95144464,68324.0,68323.0,0.001654]
[1730604136402,0.96741945,68324.0,68323.0,0.001654]
[1730604136567,0.97241945,68324.0,68323.0,0.001654]
[1730604137178,1.08804333,68324.0,68323.0,0.001654]
[1730604137401,1.09304333,68324.0,68323.0,0.001654]
[1730604137609,1.23886907,68324.0,68323.0,0.001654]
[1730604138154,1.22886907,68324.0,68323.0,0.001654]
[1730604139073,1.22887021,68324.0,68323.0,0.001654]
[1730604139279,1.22015106,68324.0,68323.0,0.001654]
[1730604139504,1.23386983,68324.0,68323.0,0.001654]
[1730604141282,1.12886983,68324.0,68323.0,0.001654]
[1730604142041,0.146393,68309.0,68308.0,0.00764962]
[1730604142296,0.146397,68307.0,68304.0,0.22224061]
[1730604142556,0.83441608,68307.0,68304.0,0.001654]
[1730604142754,0.82069991,68307.0,68304.0,0.001654]
[1730604142968,0.83442211,68307.0,68304.0,0.001654]
[1730604143188,0.98024785,68307.0,68304.0,0.001654]
[1730604143400,0.99424785,68307.0,68304.0,0.001654]
[1730604144809,0.86242211,68307.0,68304.0,0.001654]
[1730604145710,0.71662507,68307.0,68304.0,0.001654]
[1730604146181,0.70290287,68307.0,68304.0,0.001654]
[1730604146446,0.71659859,68307.0,68304.0,0.001654]
[1730604147122,0.7165969,68307.0,68304.0,0.001654]
[1730604147594,0.70041709,68307.0,68304.0,0.148056]
[1730604147828,0.5701999,68307.0,68304.0,0.001654]
[1730604148280,0.7165969,68307.0,68304.0,0.001654]
[1730604148988,0.5701999,68307.0,68304.0,0.148057]
[1730604149445,0.7165969,68307.0,68304.0,0.148057]
[1730604149664,0.70563084,68307.0,68304.0,0.001654]
[1730604150157,0.55923384,68307.0,68304.0,0.001654]
[1730604150568,0.55923384,68307.0,68306.0,0.43585104]
[1730604150787,0.54552795,68307.0,68306.0,0.84350453]
[1730604151005,0.54552795,68307.0,68306.0,0.82705105]
[1730604151227,0.53152795,68307.0,68306.0,0.82705105]
[1730604151447,0.51752795,68307.0,68306.0,0.82705105]
[1730604151672,0.53152795,68307.0,68306.0,0.82505105]
[1730604151885,0.53152795,68307.0,68306.0,0.70442717]
[1730604152120,0.57593217,68307.0,68306.0,0.31663013]
[1730604152340,0.57593217,68307.0,68306.0,0.15569685]
[1730604152617,0.57593217,68307.0,68306.0,0.148054]
[1730604152842,0.56193217,68307.0,68306.0,0.15569685]
[1730604153071,0.5170953,68307.0,68306.0,0.15569685]
[1730604153506,0.5310953,68307.0,68306.0,0.001654]
[1730604153710,0.5160953,68307.0,68306.0,0.001654]
[1730604154174,0.5180953,68307.0,68306.0,0.004654]
[1730604154388,0.5180953,68307.0,68306.0,0.151054]
[1730604156816,0.5170953,68307.0,68306.0,0.150054]
[1730604157251,0.5179143,68307.0,68306.0,0.148054]
[1730604157482,0.5179143,68307.0,68306.0,0.33986504]
[1730604157743,0.51365635,68307.0,68306.0,0.44404103]
[1730604157945,0.51893473,68307.0,68306.0,0.44404103]
[1730604158872,0.51893473,68307.0,68306.0,0.68704744]
[1730604159705,0.51893473,68307.0,68306.0,0.68698288]
[1730604159910,0.51893473,68307.0,68306.0,0.59980135]
[1730604160220,0.51893473,68307.0,68306.0,0.70877827]
[1730604160418,0.51893473,68307.0,68306.0,0.59980135]
[1730604161314,0.51893473,68307.0,68306.0,0.60346947]
[1730604162164,0.51893473,68307.0,68306.0,0.69056702]
[1730604162623,0.51893473,68307.0,68306.0,0.60346947]
[1730604162980,0.51893473,68307.0,68306.0,0.55370135]
[1730604163434,0.51893473,68307.0,68306.0,0.40790431]
[1730604165339,0.51893473,68307.0,68306.0,0.24699307]
[1730604165543,0.51365635,68307.0,68306.0,0.24699307]
[1730604165961,0.51895615,68307.0,68306.0,0.49571778]
[1730604166175,0.51895615,68307.0,68306.0,0.55311334]
[1730604166392,0.52072275,68307.0,68306.0,0.56584775]
[1730604166607,0.48776414,68307.0,68306.0,0.54089011]
[1730604166816,0.48776414,68307.0,68306.0,0.58237334]
[1730604167033,0.48576414,68307.0,68306.0,0.59410775]
[1730604167238,0.48676414,68307.0,68306.0,0.59510775]
[1730604167442,0.0098854,68307.0,68306.0,0.58237334]
[1730604167652,0.0088854,68307.0,68306.0,0.58137334]
[1730604167851,0.001819,68307.0,68306.0,0.59410775]
[1730604168072,0.002819,68307.0,68306.0,0.59510775]
[1730604168281,0.002819,68307.0,68306.0,0.58237334]
[1730604168577,0.001819,68307.0,68306.0,0.57015011]
[1730604169024,0.002819,68307.0,68306.0,0.58315011]
[1730604169851,0.002819,68307.0,68306.0,0.57551104]
[1730604169998,0.002819,68307.0,68306.0,0.58312662]
[1730604170611,0.002819,68307.0,68306.0,0.55386662]
[1730604172695,0.002819,68307.0,68306.0,0.54625104]
[1730604172959,0.002819,68307.0,68306.0,0.55386302]
[1730604175161,0.22058661,68323.0,68322.0,0.156365]
[1730604175394,0.22783421,68323.0,68322.0,0.256365]
[1730604175797,0.0072476,68323.0,68322.0,0.256365]
[1730604176245,0.22058661,68333.0,68332.0,0.146344]
[1730604176784,0.22783432,68333.0,68332.0,0.146344]
[1730604177001,0.146329,68339.0,68334.0,0.146339]
[1730604178786,0.146329,68339.0,68332.0,0.293686]
[1730604178787,0.12062388,68336.0,68332.0,0.001]
[1730604179025,0.12062388,68336.0,68318.0,0.01217933]
[1730604179026,0.292684,68333.0,68319.0,0.22058661]
[1730604179199,0.146347,68331.0,68326.0,0.146355]
[1730604179410,0.292684,68333.0,68326.0,0.146355]
[1730604179615,0.146347,68331.0,68326.0,0.146355]
[1730604179813,0.146347,68331.0,68324.0,0.292719]
[1730604179814,0.0775,68334.0,68323.0,0.292727]
[1730604180014,0.0775,68334.0,68333.0,0.146342]
[1730604180224,0.29808661,68334.0,68333.0,0.146342]
[1730604180488,0.0775,68334.0,68333.0,0.146342]
[1730604181127,0.0915,68334.0,68333.0,0.147342]
[1730604181751,0.1055,68334.0,68333.0,0.147342]
[1730604182391,0.0915,68334.0,68333.0,0.147342]
[1730604182715,0.1055,68334.0,68333.0,0.148342]
[1730604184538,0.1055,68334.0,68333.0,0.002]
[1730604185380,0.1055,68334.0,68333.0,0.148342]
[1730604185381,0.028,68334.0,68333.0,0.148342]
[1730604185745,0.028,68334.0,68333.0,0.002]
[1730604187819,0.17434,68334.0,68333.0,0.002]
[1730604188056,0.61486172,68334.0,68333.0,0.002]
[1730604188305,0.62581362,68334.0,68333.0,0.002]
[1730604188838,0.146374,68318.0,68315.0,0.00759346]
[1730604189061,0.1274,68318.0,68317.0,0.146376]
[1730604189268,0.1274,68318.0,68312.0,0.292774]
[1730604189477,0.1274,68318.0,68313.0,0.292769]
[1730604189696,0.1274,68318.0,68315.0,0.146378]
[1730604189894,0.1274,68318.0,68316.0,0.146378]
[1730604191173,0.292752,68317.0,68312.0,0.00760066]
[1730604191385,0.14639,68311.0,68308.0,0.00760066]
[1730604191810,0.14639,68311.0,68307.0,0.146397]
[1730604192242,0.146385,68313.0,68307.0,0.29443]
[1730604192646,0.146391,68310.0,68307.0,0.001638]
[1730604192815,0.001,68311.0,68307.0,0.148035]
[1730604193039,0.001,68311.0,68307.0,0.001638]
[1730604193242,0.146391,68310.0,68307.0,0.001638]
[1730604193887,0.146388,68312.0,68307.0,0.148035]
[1730604194091,0.146388,68312.0,68308.0,0.146394]
[1730604194300,0.028,68313.0,68308.0,0.146394]
[1730604194522,0.014,68313.0,68308.0,0.146394]
[1730604194740,0.146385,68313.0,68308.0,0.146394]
[1730604194940,0.001,68310.0,68308.0,0.146394]
[1730604195401,0.001,68310.0,68307.0,0.001638]
[1730604195625,0.147392,68310.0,68307.0,0.001638]
[1730604196023,0.001,68310.0,68307.0,0.001638]
[1730604196244,0.292767,68314.0,68307.0,0.001638]
[1730604196436,0.146391,68310.0,68307.0,0.001638]
[1730604196766,0.160391,68310.0,68307.0,0.001638]
[1730604197954,0.146385,68313.0,68307.0,0.294431]
[1730604198115,0.014,68314.0,68307.0,0.001638]
[1730604198351,0.292775,68312.0,68307.0,0.001638]
[1730604198696,0.146391,68311.0,68307.0,0.001638]
[1730604198905,0.014,68310.0,68307.0,0.001638]
[1730604199071,0.014,68310.0,68307.0,0.148035]
[1730604200056,0.146395,68308.0,68307.0,0.001638]
[1730604200258,0.014,68310.0,68307.0,0.001638]
[1730604200468,0.160388,68312.0,68308.0,0.146394]
[1730604200640,0.160388,68312.0,68307.0,0.001638]
[1730604200641,0.306774,68312.0,68307.0,0.001638]
[1730604200904,0.014,68310.0,68307.0,0.001638]
[1730604201120,0.146391,68311.0,68307.0,0.148035]
[1730604201353,0.014,68310.0,68307.0,0.001638]
[1730604201579,0.014,68308.0,68307.0,0.148034]
[1730604202830,0.146372,68319.0,68314.0,0.146381]
[1730604203041,0.22058661,68315.0,68314.0,0.146381]
[1730604203241,0.00704673,68318.0,68313.0,0.146384]
[1730604203455,0.0070543,68317.0,68308.0,0.29279]
[1730604203669,0.0070543,68317.0,68314.0,0.146382]
[1730604203853,0.51331561,68323.0,68308.0,0.29279]
[1730604204040,0.146374,68319.0,68308.0,0.29279]
[1730604204281,0.146374,68319.0,68315.0,0.14638]
[1730604204432,0.0070543,68318.0,68315.0,0.14638]
[1730604204856,0.0070543,68318.0,68313.0,0.146384]
[1730604205023,0.146377,68317.0,68313.0,0.146384]
[1730604205232,0.15344922,68316.0,68311.0,0.146387]
[1730604205437,0.15344922,68316.0,68308.0,0.292788]
[1730604205438,0.15344922,68316.0,68312.0,0.146386]
[1730604205862,0.00707022,68316.0,68313.0,0.146384]
[1730604206057,0.028,68317.0,68313.0,0.146384]
[1730604206263,0.00707022,68315.0,68313.0,0.146384]
[1730604206657,0.014,68316.0,68313.0,0.146384]
[1730604206865,0.00707022,68315.0,68313.0,0.146384]
[1730604207288,0.160376,68317.0,68313.0,0.146384]
[1730604207573,0.15345322,68314.0,68310.0,0.146389]
[1730604207785,0.306757,68316.0,68308.0,0.146395]
[1730604207990,0.306757,68316.0,68307.0,0.001638]
[1730604207991,0.146389,68311.0,68307.0,0.001638]
[1730604208221,0.14639,68311.0,68307.0,0.001638]
[1730604208748,0.00707022,68310.0,68307.0,0.001638]
[1730604209120,0.00707022,68310.0,68308.0,0.146395]
[1730604209524,0.146387,68312.0,68308.0,0.146395]
[1730604209731,0.00707022,68309.0,68308.0,0.146395]
[1730604209952,0.146387,68312.0,68308.0,0.146395]
[1730604210122,0.00707022,68309.0,68308.0,0.146395]
[1730604210684,0.028,68311.0,68308.0,0.146395]
[1730604211189,0.00707022,68310.0,68308.0,0.146395]
[1730604211389,0.014,68309.0,68308.0,0.146395]
[1730604211601,0.03507022,68309.0,68308.0,0.146395]
[1730604211800,0.02107022,68309.0,68308.0,0.146395]
[1730604212033,0.00707022,68309.0,68308.0,0.146395]
[1730604212205,0.014,68311.0,68308.0,0.146395]
[1730604212461,0.02107022,68310.0,68308.0,0.146395]
[1730604213508,0.02107022,68310.0,68309.0,0.146393]
[1730604213676,0.00707022,68310.0,68309.0,0.146393]
[1730604213883,0.01450448,68318.0,68315.0,0.14638]
[1730604214091,0.22058661,68316.0,68315.0,0.14638]
[1730604214298,0.00707022,68317.0,68316.0,0.146377]
[1730604214445,0.000819,68318.0,68316.0,0.146377]
[1730604215085,0.02850861,68318.0,68316.0,0.146377]
[1730604215299,0.000819,68318.0,68317.0,0.146376]
[1730604215717,0.028819,68318.0,68317.0,0.146376]
[1730604216350,0.028819,68318.0,68316.0,0.146378]
[1730604216761,0.028819,68318.0,68315.0,0.292761]
[1730604216762,0.014819,68318.0,68315.0,0.292761]
[1730604216957,0.014819,68318.0,68316.0,0.146376]
[1730604217212,0.028819,68318.0,68317.0,0.146376]
[1730604217432,0.0285274,68318.0,68317.0,0.146376]
[1730604217603,0.0145274,68318.0,68317.0,0.146376]
[1730604217807,0.0285274,68318.0,68317.0,0.146376]
[1730604218329,0.0425274,68318.0,68317.0,0.146376]
[1730604218542,0.02853261,68318.0,68317.0,0.146376]
[1730604218750,0.014819,68318.0,68317.0,0.146376]
[1730604218957,0.02853257,68318.0,68317.0,0.146376]
[1730604219818,0.02853257,68318.0,68315.0,0.00760356]
[1730604220028,0.02853257,68318.0,68313.0,0.146383]
[1730604220029,0.01371357,68317.0,68313.0,0.146383]
[1730604220198,0.16008957,68317.0,68314.0,0.00760356]
[1730604220428,0.2662636,68317.0,68315.0,0.00760356]
[1730604220622,0.2662636,68317.0,68313.0,0.146383]
[1730604220871,0.0137159,68316.0,68313.0,0.15398656]
[1730604221070,0.2662636,68317.0,68313.0,0.146383]
[1730604221277,0.0137159,68316.0,68313.0,0.00760356]
[1730604221468,0.0137159,68315.0,68313.0,0.146385]
[1730604221696,0.0137159,68314.0,68313.0,0.146385]
[1730604222352,0.01371786,68314.0,68313.0,0.146385]
[1730604223626,0.01371749,68314.0,68313.0,0.146385]
[1730604224057,0.01471749,68314.0,68313.0,0.147385]
[1730604224372,0.01571749,68314.0,68313.0,0.147385]
[1730604224793,0.01371749,68314.0,68313.0,0.146385]
[1730604225048,0.02771749,68314.0,68313.0,0.146385]
[1730604225402,0.01371749,68314.0,68313.0,0.146385]
[1730604225601,0.02771749,68314.0,68313.0,0.146385]
[1730604225801,0.014,68314.0,68313.0,0.15399256]
[1730604226235,0.028,68314.0,68313.0,0.15399256]
[1730604226431,0.028,68314.0,68313.0,0.15692017]
[1730604226638,0.014,68314.0,68313.0,0.15399256]
[1730604226847,0.000819,68318.0,68313.0,0.15399256]
[1730604226848,0.000819,68318.0,68317.0,0.146376]
[1730604227052,0.01453648,68318.0,68317.0,0.146376]
[1730604228106,0.02853648,68318.0,68317.0,0.146376]
[1730604228323,0.014819,68318.0,68317.0,0.15398356]
[1730604228786,0.014819,68318.0,68317.0,0.15398344]
[1730604229222,0.028819,68318.0,68317.0,0.15398344]
[1730604229437,0.028819,68318.0,68317.0,0.23342456]
[1730604229658,0.028819,68318.0,68317.0,0.27693004]
[1730604230092,0.028819,68318.0,68317.0,0.2769237]
[1730604230303,0.028819,68318.0,68317.0,0.23342456]
[1730604231409,0.028819,68318.0,68317.0,0.29868266]
[1730604231627,0.028819,68318.0,68317.0,0.21924154]
[1730604232292,0.028819,68318.0,68317.0,0.15398344]
[1730604232517,0.028819,68318.0,68317.0,0.37226679]
[1730604232744,0.028819,68318.0,68317.0,0.37984704]
[1730604232963,0.028819,68318.0,68317.0,0.37984963]
[1730604233191,0.028819,68318.0,68317.0,0.31458894]